bitfinex/quotes_SOLUSD_20251207
["timestamp","ask_amount","ask_price","bid_price","bid_amount"]
[1765150835904,8.44,131.3,131.28,9.40550074]
[1765150836111,9.1,131.3,131.28,9.40550074]
[1765150837410,8.44,131.31,131.29,9.40550074]
[1765150837611,8.44,131.31,131.3,9.40550074]
[1765150838999,9.1,131.31,131.3,9.40550074]
[1765150839204,8.44,131.31,131.3,9.40550074]
[1765150840393,9.1,131.31,131.3,9.40550074]
[1765150842922,9.1,131.31,131.3,3.54440449]
[1765150843212,8.44,131.31,131.3,3.54440449]
[1765150844816,9.1,131.31,131.3,3.54440449]
[1765150847205,16.71556621,131.31,131.3,3.54440449]
[1765150847412,16.71556621,131.31,131.27,3.64440449]
[1765150847716,0.66,131.3,131.28,3.54440449]
[1765150847917,0.66,131.3,131.27,3.64440449]
[1765150848227,8.80994492,131.29,131.27,0.1]
[1765150848596,17.08725144,131.28,131.27,0.1]
[1765150851919,33.39611544,131.28,131.27,0.1]
[1765150859964,33.39611544,131.28,131.24,0.1]
[1765150859965,25.11880892,131.25,131.24,0.1]
[1765150860136,33.55880892,131.25,131.24,0.1]
[1765150860336,34.20880892,131.25,131.24,0.1]
[1765150860866,37.75321341,131.25,131.24,0.1]
[1765150861067,45.37226102,131.25,131.24,0.1]
[1765150862358,48.91666551,131.25,131.24,1e-08]
[1765150865251,8.80994492,131.2,131.15,0.1]
[1765150865462,3.54440449,131.16,131.15,0.1]
[1765150865969,4.19440449,131.16,131.15,0.1]
[1765150866348,13.00434941,131.16,131.15,0.1]
[1765150866767,8.44,131.19,131.15,0.1]
[1765150866768,3.54440449,131.17,131.15,0.1]
[1765150866973,8.44,131.18,131.15,0.21]
[1765150867345,8.44,131.18,131.15,7.83461995]
[1765150867972,11.16625182,131.21,131.16,0.11]
[1765150868265,21.44434941,131.2,131.15,0.1]
[1765150868479,21.44434941,131.2,131.15,0.21]
[1765150868680,0.65,131.19,131.15,0.21]
[1765150869189,7.62311327,131.18,131.15,0.21]
[1765150869492,9.89686046,131.18,131.15,0.1]
[1765150869691,9.89686046,131.18,131.15,0.21]
[1765150869869,7.62311327,131.18,131.15,0.21]
[1765150871980,26.68089646,131.18,131.15,0.21]
[1765150872172,27.33089646,131.18,131.15,0.1]
[1765150872373,7.62311327,131.18,131.15,0.21]
[1765150872969,8.80994492,131.17,131.15,0.1]
[1765150873177,10.54686046,131.18,131.15,0.1]
[1765150873488,8.27311327,131.18,131.15,0.1]
[1765150874484,10.54686046,131.18,131.15,0.1]
[1765150875098,7.62311327,131.18,131.15,0.21]
[1765150875275,8.27311327,131.18,131.15,0.21]
[1765150875476,8.27311327,131.18,131.15,0.1]
[1765150875672,0.65,131.17,131.15,0.1]
[1765150875893,10.71374719,131.16,131.15,0.1]
[1765150876095,19.52369211,131.16,131.15,0.1]
[1765150876400,20.17369211,131.16,131.15,0.1]
[1765150877509,27.7979678,131.16,131.15,0.1]
[1765150877687,24.87422061,131.16,131.15,0.1]
[1765150877895,25.52422061,131.16,131.15,0.1]
[1765150878902,24.87422061,131.16,131.15,0.1]
[1765150879276,27.7979678,131.16,131.15,0.1]
[1765150880778,8.80994492,131.15,131.14,0.1]
[1765150880979,19.39854914,131.15,131.14,0.1]
[1765150881486,38.46069172,131.15,131.12,0.1]
[1765150881702,2.27374719,131.13,131.12,0.1]
[1765150881887,9.89860422,131.15,131.12,0.1]
[1765150882084,9.13,131.14,131.12,0.1]
[1765150882704,7.62485703,131.15,131.12,0.31]
[1765150883088,0.69,131.14,131.12,0.1]
[1765150883284,2.96374719,131.14,131.12,0.1]
[1765150883787,8.80994492,131.13,131.12,0.1]
[1765150883993,11.77369211,131.13,131.12,0.1]
[1765150885502,19.39971209,131.13,131.12,0.1]
[1765150885691,8.80994492,131.13,131.12,0.1]
[1765150886220,24.8959649,131.13,131.12,0.1]
[1765150886879,25.5859649,131.13,131.12,0.1]
[1765150887692,27.85971209,131.13,131.12,0.1]
[1765150904040,19.39971209,131.13,131.12,0.1]
[1765150904215,27.83971209,131.13,131.12,0.1]
[1765150904932,27.14971209,131.13,131.12,0.1]
[1765150906139,10.71374719,131.13,131.12,0.1]
[1765150906732,2.27374719,131.15,131.12,0.31]
[1765150907918,0.69,131.15,131.12,0.1]
[1765150908120,2.27374719,131.15,131.12,0.31]
[1765150908319,9.89907551,131.15,131.12,0.31]
[1765150909024,2.27374719,131.14,131.12,0.31]
[1765150909244,9.89907551,131.15,131.12,0.31]
[1765150909829,2.27374719,131.14,131.12,0.31]
[1765150910029,9.89907551,131.15,131.12,0.31]
[1765150910921,10.71374719,131.16,131.13,0.21]
[1765150911121,18.33816986,131.16,131.13,0.21]
[1765150911543,10.71374719,131.16,131.13,0.21]
[1765150912428,10.71374719,131.16,131.13,7.83599976]
[1765150912624,16.0643776,131.16,131.14,0.21]
[1765150912947,10.71374719,131.16,131.14,0.21]
[1765150913858,10.71374719,131.16,131.13,7.8359155]
[1765150914158,8.44,131.16,131.14,0.21]
[1765150914529,9.89668726,131.19,131.14,0.21]
[1765150914834,18.99668726,131.19,131.14,0.21]
[1765150915257,2.27374719,131.18,131.14,0.21]
[1765150915954,18.33668726,131.19,131.14,7.83490394]
[1765150916470,8.44,131.19,131.15,0.21]
[1765150916931,9.89640244,131.19,131.15,0.21]
[1765150917548,2.27374719,131.19,131.15,0.21]
[1765150919163,2.27374719,131.19,131.16,7.62427569]
[1765150919336,19.04594229,131.2,131.15,7.83473139]
[1765150919963,2.27374719,131.19,131.16,0.21]
[1765150920167,2.98374719,131.19,131.15,7.83473139]
[1765150920363,2.27374719,131.19,131.15,7.83473139]
[1765150920561,2.27374719,131.17,131.14,7.62540131]
[1765150920944,2.27374719,131.17,131.14,7.83540131]
[1765150921278,9.89761441,131.17,131.14,0.21]
[1765150921645,2.98374719,131.16,131.12,7.7264093]
[1765150921845,2.27374719,131.15,131.12,0.1]
[1765150922146,2.98374719,131.14,131.12,0.1]
[1765150922470,2.27374719,131.13,131.12,0.1]
[1765150922655,2.98374719,131.13,131.12,0.1]
[1765150924269,9.89938721,131.14,131.12,0.1]
[1765150924453,7.62564002,131.14,131.12,0.31]
[1765150924766,7.62564002,131.14,131.12,0.1]
[1765150925152,37.40013977,131.16,131.12,0.31]
[1765150925358,38.11013977,131.16,131.12,0.31]
[1765150926176,0.71,131.15,131.12,0.31]
[1765150926563,38.11013977,131.16,131.12,0.31]
[1765150926982,10.60877893,131.15,131.12,0.1]
[1765150927162,7.62503174,131.15,131.12,0.31]
[1765150927554,8.33503174,131.15,131.12,0.31]
[1765150929181,3.55476854,131.13,131.12,0.1]
[1765150929595,4.26476854,131.13,131.12,0.1]
[1765150931384,11.89078852,131.13,131.12,0.1]
[1765150933998,20.70073344,131.13,131.12,0.1]
[1765150935354,11.89078852,131.13,131.12,0.1]
[1765150935763,11.18042304,131.14,131.12,0.1]
[1765150936379,11.89042304,131.14,131.12,0.1]
[1765150937067,11.17976041,131.15,131.12,0.1]
[1765150937270,8.44,131.14,131.12,0.1]
[1765150937983,9.15,131.14,131.12,0.1]
[1765150938879,12.70476854,131.14,131.12,0.1]
[1765150941491,20.33035389,131.14,131.12,0.1]
[1765150942563,16.77558535,131.14,131.12,0.1]
[1765150945195,8.44,131.14,131.12,0.1]
[1765150945705,16.77552383,131.14,131.12,0.1]
[1765150946602,4.26476854,131.13,131.12,0.1]
[1765150947568,9.51994492,131.13,131.12,0.1]
[1765150947888,13.07471346,131.13,131.12,0.1]
[1765150948795,20.70073344,131.13,131.12,0.1]
[1765150951807,11.18078852,131.13,131.12,0.1]
[1765150952310,7.62601998,131.13,131.12,0.1]
[1765150952613,8.42,131.13,131.12,0.1]
[1765150954308,9.13,131.13,131.12,0.1]
[1765150954610,8.42,131.13,131.12,0.1]
[1765150955713,20.31078852,131.13,131.12,0.1]
[1765150959698,19.60078852,131.13,131.12,0.1]
[1765150959899,20.31078852,131.13,131.12,0.1]
[1765150960394,8.42,131.13,131.12,0.1]
[1765150960794,11.8897611,131.15,131.12,0.1]
[1765150961107,8.42,131.14,131.12,0.31]
[1765150961320,12.68476854,131.14,131.12,0.1]
[1765150962310,9.13,131.14,131.12,0.1]
[1765150963500,19.05995548,131.17,131.12,0.1]
[1765150963501,3.55476854,131.17,131.13,0.21]
[1765150963722,20.30810694,131.18,131.13,3.76476854]
[1765150964124,20.30810694,131.18,131.14,0.21]
[1765150964426,0.71,131.17,131.14,7.8352876]
[1765150964725,0.71,131.17,131.14,0.21]
[1765150964920,19.59810694,131.18,131.14,0.21]
[1765150965124,20.30810694,131.18,131.14,0.21]
[1765150965529,20.30810694,131.18,131.14,7.83533064]
[1765150965918,16.7533384,131.18,131.14,7.83533064]
[1765150966133,16.0433384,131.18,131.15,0.21]
[1765150967429,0.71,131.18,131.15,0.21]
[1765150967628,9.13,131.2,131.15,11.38938638]
[1765150967808,7.62154757,131.21,131.16,3.76476854]
[1765150968007,16.04154757,131.21,131.16,3.76476854]
[1765150968211,16.04154757,131.21,131.17,0.21]
[1765150968410,16.04154757,131.21,131.17,3.76476854]
[1765150968844,16.04154757,131.21,131.17,11.17804211]
[1765150969141,8.42,131.21,131.18,0.21]
[1765150970141,8.42,131.21,131.18,7.83296714]
[1765150971643,8.42,131.21,131.19,0.21]
[1765150971933,8.42,131.21,131.18,11.38773568]
[1765150972239,8.42,131.21,131.19,0.21]
[1765150973147,8.42,131.21,131.19,7.83238466]
[1765150974149,36.29281803,131.25,131.2,0.21]
[1765150974324,9.14,131.24,131.2,0.21]
[1765150974524,9.14,131.24,131.19,11.3871532]
[1765150974724,0.72,131.23,131.19,11.3871532]
[1765150976024,0.72,131.23,131.19,7.83238466]
[1765150976330,11.89530197,131.23,131.18,7.62296846]
[1765150976844,0.69,131.22,131.18,7.83296846]
[1765150978348,8.31080821,131.22,131.18,7.83296846]
[1765150978729,0.69,131.21,131.18,7.83296846]
[1765150978929,7.62080821,131.22,131.18,7.83296846]
[1765150979251,8.31080821,131.22,131.18,7.83296846]
[1765150979431,7.62080821,131.22,131.18,7.83296846]
[1765150979632,8.31080821,131.22,131.18,7.83296846]
[1765150981633,0.69,131.21,131.18,7.83296846]
[1765150981828,16.43015371,131.23,131.18,7.83296846]
[1765150982029,0.69,131.22,131.18,11.387737]
[1765150982655,0.69,131.22,131.18,11.177737]
[1765150982959,0.69,131.22,131.18,11.387737]
[1765150983273,105.49,131.26,131.21,3.55476854]
[1765150983448,4.24476854,131.25,131.19,3.76476854]
[1765150983834,0.69,131.24,131.19,3.76476854]
[1765150984261,0.69,131.24,131.2,0.21]
[1765150985148,0.69,131.24,131.2,3.76476854]
[1765150985346,8.30995587,131.24,131.18,19.86363254]
[1765150985557,3.55476854,131.22,131.18,23.93183549]
[1765150985849,3.55476854,131.21,131.18,7.62297149]
[1765150986160,3.55476854,131.19,131.13,3.76476854]
[1765150986376,3.55476854,131.19,131.13,20.07363254]
[1765150986545,4.24476854,131.19,131.13,3.76476854]
[1765150986748,3.55476854,131.19,131.13,20.07363254]
[1765150987066,0.69,131.18,131.13,20.07363254]
[1765150987266,0.69,131.18,131.14,26.68828647]
[1765150987466,0.69,131.18,131.14,26.89828647]
[1765150987678,0.69,131.2,131.15,3.76476854]
[1765150987875,11.86655922,131.21,131.15,3.76476854]
[1765150988474,0.69,131.2,131.15,3.76476854]
[1765150988673,0.69,131.2,131.15,3.55476854]
[1765150988880,7.62179068,131.21,131.17,7.62369444]
[1765150989079,11.17573472,131.22,131.17,7.62369444]
[1765150989382,0.69,131.21,131.17,11.38846298]
[1765150989560,0.69,131.21,131.17,7.83369444]
[1765150990063,0.69,131.22,131.18,0.21]
[1765150990583,0.69,131.21,131.18,0.21]
[1765150990761,0.69,131.21,131.17,29.16543487]
[1765150994279,16.04037378,131.23,131.18,2.48250433]
[1765150994483,0.69,131.22,131.18,2.48250433]
[1765150996688,0.69,131.22,131.19,7.6225322]
[1765151000980,0.69,131.22,131.19,7.8325322]
[1765151003392,0.69,131.22,131.19,7.6225322]
[1765151004376,0.69,131.22,131.19,7.8325322]
[1765151004574,8.42,131.25,131.2,0.21]
[1765151004780,0.7,131.24,131.2,0.21]
[1765151005604,8.42,131.25,131.21,2.27250433]
[1765151005786,9.12,131.25,131.21,2.27250433]
[1765151005987,9.12,131.25,131.21,2.48250433]
[1765151006612,10.09003966,131.28,131.22,10.10329384]
[1765151006785,0.7,131.27,131.22,10.10329384]
[1765151007183,0.7,131.27,131.23,0.21]
[1765151007816,0.7,131.27,131.24,7.61962816]
[1765151009285,0.7,131.27,131.23,7.62020879]
[1765151010111,0.7,131.27,131.23,10.10271312]
[1765151010521,0.7,131.27,131.23,7.62020879]
[1765151010894,0.7,131.27,131.23,7.83020879]
[1765151013818,0.7,131.27,131.23,26.88073077]
[1765151014119,0.7,131.27,131.23,29.1532351]
[1765151015510,0.7,131.27,131.24,0.21]
[1765151015711,0.7,131.27,131.24,2.48250433]
[1765151016216,0.7,131.27,131.23,29.1532351]
[1765151017818,0.7,131.27,131.23,28.9432351]
[1765151018120,0.7,131.27,131.25,7.61904761]
[1765151019110,0.9,131.28,131.25,7.61904761]
[1765151020527,0.7,131.27,131.25,7.61904761]
[1765151021228,0.7,131.27,131.24,7.61962816]
[1765151023522,0.7,131.27,131.24,9.89213249]
[1765151025928,0.7,131.27,131.24,7.61962816]
[1765151029213,0.7,131.27,131.24,29.15120289]
[1765151029528,0.9,131.28,131.25,2.48250433]
[1765151030103,0.2,131.28,131.26,2.27250433]
[1765151030332,0.2,131.28,131.27,7.61788679]
[1765151030522,0.9,131.28,131.27,7.61788679]
[1765151034654,0.9,131.28,131.26,9.89097149]
[1765151034933,0.2,131.28,131.27,2.27250433]
[1765151036136,0.2,131.28,131.27,9.89039112]
[1765151037936,0.2,131.28,131.27,10.10039112]
[1765151038137,0.2,131.28,131.27,9.89039112]
[1765151038519,0.2,131.28,131.27,7.61788679]
[1765151040351,0.2,131.28,131.27,9.89039112]
[1765151041848,0.88,131.28,131.26,7.61831788]
[1765151042353,0.68,131.27,131.26,9.89082221]
[1765151042643,0.2,131.28,131.26,9.89082221]
[1765151042851,0.2,131.28,131.27,2.27250433]
[1765151043047,0.2,131.28,131.27,2.48250433]
[1765151043234,0.2,131.28,131.27,2.27250433]
[1765151043431,0.2,131.28,131.27,2.48250433]
[1765151044445,0.2,131.28,131.27,10.10039112]
[1765151044648,0.2,131.28,131.27,9.89039112]
[1765151045147,0.88,131.28,131.25,21.31930786]
[1765151045324,0.88,131.28,131.23,21.32259284]
[1765151045531,0.68,131.27,131.23,21.32259284]
[1765151045838,0.68,131.27,131.24,7.61926291]
[1765151046429,0.68,131.27,131.25,7.61899477]
[1765151047631,0.68,131.27,131.25,9.8914991]
[1765151047851,0.68,131.27,131.25,7.61899477]
[1765151048440,0.68,131.27,131.25,9.8914991]
[1765151049655,0.68,131.27,131.25,7.61899477]
[1765151053053,0.68,131.27,131.25,11.16621377]
[1765151053262,0.2,131.28,131.26,3.757219]
[1765151053452,0.2,131.28,131.27,11.16510579]
[1765151060780,0.2,131.28,131.27,11.37510579]
[1765151061274,0.2,131.28,131.27,11.16510579]
[1765151065384,0.2,131.28,131.27,11.37510579]
[1765151065878,0.2,131.28,131.27,11.16510579]
[1765151066280,0.2,131.28,131.27,73.36510579]
[1765151067684,0.2,131.28,131.27,82.38505071]
[1765151069185,1e-08,131.28,131.27,98.69391471]
[1765151069480,0.2,131.29,131.28,16.308864]
[1765151069686,0.2,131.29,131.28,19.856083]
[1765151070628,0.2,131.29,131.28,27.47338952]
[1765151071000,0.92,131.29,131.28,27.47338952]
[1765151071937,0.2,131.29,131.28,27.47338952]
[1765151072145,0.92,131.29,131.28,27.47338952]
[1765151078825,0.92,131.29,131.28,11.16452552]
[1765151081745,0.2,131.29,131.28,11.16452552]
[1765151082818,0.92,131.29,131.28,11.16452552]
[1765151083024,0.2,131.29,131.28,11.16452552]
[1765151084032,0.2,131.29,131.28,11.37452552]
[1765151084233,0.2,131.29,131.28,11.16452552]
[1765151084448,0.2,131.29,131.28,11.37452552]
[1765151085740,0.2,131.29,131.28,11.16452552]
[1765151087350,0.2,131.29,131.28,98.69333444]
[1765151088223,0.2,131.29,131.28,98.48333444]
[1765151088862,0.2,131.29,131.28,98.69333444]
[1765151089648,0.2,131.29,131.28,98.48333444]
[1765151090056,0.2,131.29,131.28,98.69333444]
[1765151092127,0.88,131.29,131.28,89.67338952]
[1765151092553,0.88,131.29,131.28,73.36452552]
[1765151097459,0.88,131.29,131.28,11.16452552]
[1765151101443,0.2,131.29,131.28,11.16452552]
[1765151101642,0.86,131.29,131.28,11.16452552]
[1765151101844,0.2,131.29,131.28,11.16452552]
[1765151102251,0.86,131.29,131.28,11.16452552]
[1765151103473,0.86,131.29,131.28,73.36452552]
[1765151109978,0.2,131.29,131.28,73.36452552]
[1765151110553,0.86,131.29,131.28,73.36452552]
[1765151111459,0.86,131.29,131.28,69.81730652]
[1765151111670,12.02399981,131.29,131.22,61.48]
[1765151111897,4.207219,131.28,131.23,7.61985945]
[1765151112184,0.66,131.27,131.23,7.61985945]
[1765151112554,8.27807408,131.27,131.22,42.98104116]
[1765151112779,8.27807408,131.27,131.22,45.2522703]
[1765151112978,0.66,131.26,131.22,45.2522703]
[1765151118393,0.66,131.26,131.22,106.7322703]
[1765151119306,0.66,131.26,131.22,104.46104116]
[1765151119886,0.66,131.26,131.22,42.98104116]
[1765151120468,0.66,131.26,131.22,45.2522703]
[1765151120699,0.66,131.26,131.22,45.9322703]
[1765151121695,0.66,131.26,131.24,7.61962816]
[1765151122684,10.08820322,131.29,131.24,7.61962816]
[1765151122991,0.69,131.26,131.24,7.61962816]
[1765151123580,0.69,131.27,131.24,10.5608573]
[1765151123903,0.89,131.29,131.26,9.8896963]
[1765151124081,0.69,131.28,131.25,7.61880627]
[1765151125699,0.69,131.28,131.24,7.61962816]
[1765151130671,8.30735511,131.28,131.22,19.36008639]
[1765151130877,2.27122914,131.26,131.22,19.36008639]
[1765151131395,0.69,131.25,131.22,16.308864]
[1765151132998,0.69,131.25,131.21,7.62101777]
[1765151133200,8.30924967,131.25,131.19,26.67316674]
[1765151133411,10.58047881,131.25,131.21,7.62097445]
[1765151133576,0.69,131.24,131.21,7.62097445]
[1765151134092,0.69,131.24,131.2,7.62195121]
[1765151135024,0.69,131.24,131.2,28.94805839]
[1765151135190,0.69,131.24,131.2,29.61805839]
[1765151137214,0.69,131.24,131.2,28.94805839]
[1765151137716,8.30982749,131.24,131.19,9.8936166]
[1765151138091,0.69,131.23,131.2,9.89315809]
[1765151139120,0.69,131.23,131.2,10.56315809]
[1765151140216,0.69,131.23,131.2,9.89315809]
[1765151140995,0.69,131.23,131.2,10.56315809]
[1765151143121,0.69,131.23,131.2,9.89315809]
[1765151145121,0.69,131.23,131.2,7.62192895]
[1765151147325,9.88991352,131.26,131.2,28.94803613]
[1765151147525,0.69,131.23,131.2,29.61803613]
[1765151150926,0.69,131.23,131.2,91.09803613]
[1765151153039,0.69,131.23,131.2,88.15680699]
[1765151153900,0.69,131.23,131.2,69.10192895]
[1765151155126,0.69,131.23,131.2,69.78192895]
[1765151156531,0.69,131.23,131.2,69.10192895]
[1765151156906,0.69,131.23,131.2,7.62192895]
[1765151157944,0.69,131.23,131.2,27.38680699]
[1765151158112,0.69,131.25,131.21,0.71]
[1765151158435,0.69,131.25,131.22,7.62078951]
[1765151159627,26.19816473,131.27,131.21,28.94602526]
[1765151159830,0.69,131.27,131.23,0.71]
[1765151160015,0.69,131.26,131.23,0.71]
[1765151160208,0.69,131.26,131.23,2.98122914]
[1765151160409,0.69,131.26,131.22,2.98122914]
[1765151161351,0.69,131.26,131.21,28.94602526]
[1765151161512,2.27122914,131.25,131.21,7.62137032]
[1765151161713,9.89061312,131.25,131.21,7.62137032]
[1765151161911,0.69,131.24,131.21,7.62137032]
[1765151162918,0.69,131.24,131.2,26.67682925]
[1765151163122,0.69,131.24,131.21,0.71]
[1765151163331,0.69,131.24,131.2,28.94805839]
[1765151163541,0.69,131.24,131.2,29.65805839]
[1765151165735,0.69,131.26,131.22,2.27122914]
[1765151166040,0.69,131.25,131.22,2.27122914]
[1765151166221,0.69,131.25,131.22,0.71]
[1765151166426,0.69,131.25,131.22,2.98122914]
[1765151166942,0.69,131.25,131.22,10.6015496]
[1765151167418,0.69,131.26,131.23,0.71]
[1765151167614,0.69,131.26,131.22,9.8915496]
[1765151167864,0.69,131.26,131.22,10.6015496]
[1765151168442,0.69,131.26,131.22,29.65352338]
[1765151168940,0.69,131.26,131.22,88.15229424]
[1765151169107,0.69,131.26,131.22,88.86229424]
[1765151170815,8.30863415,131.26,131.22,69.10032046]
[1765151171339,8.30863415,131.26,131.22,69.81032046]
[1765151171340,0.69,131.25,131.22,69.81032046]
[1765151172245,0.69,131.25,131.22,72.0815496]
[1765151172418,0.69,131.26,131.23,0.71]
[1765151172621,0.69,131.26,131.22,71.3715496]
[1765151172820,0.69,131.26,131.22,72.0815496]
[1765151173048,8.30863568,131.26,131.22,72.0815496]
[1765151173548,0.69,131.25,131.22,72.0815496]
[1765151174856,0.69,131.25,131.22,11.87897693]
[1765151175652,0.69,131.25,131.22,30.22095071]
[1765151175841,8.3075439,131.28,131.23,4.25865647]
[1765151176031,8.3075439,131.28,131.24,3.54865647]
[1765151176032,0.69,131.28,131.24,3.54865647]
[1765151176238,0.69,131.28,131.24,4.25865647]
[1765151176549,0.69,131.28,131.25,0.71]
[1765151177643,8.30757008,131.28,131.24,7.61909284]
[1765151177844,8.30757008,131.28,131.25,7.61902714]
[1765151178025,0.69,131.27,131.25,7.61902714]
[1765151179260,0.89,131.29,131.26,0.71]
[1765151179459,0.89,131.29,131.25,11.87768361]
[1765151179664,0.69,131.28,131.25,11.87768361]
[1765151180132,0.69,131.28,131.25,8.32902714]
[1765151180332,0.69,131.28,131.25,7.61902714]
[1765151181339,0.69,131.28,131.25,8.33902714]
[1765151181543,0.69,131.28,131.25,7.61902714]
[1765151181937,0.69,131.28,131.25,8.33902714]
[1765151182241,0.69,131.28,131.25,7.61902714]
[1765151182445,0.69,131.28,131.25,11.16768361]
[1765151183859,0.69,131.28,131.25,11.88768361]
[1765151185463,0.69,131.28,131.26,3.54865647]
[1765151185665,0.2,131.29,131.27,3.54865647]
[1765151185860,0.2,131.29,131.27,11.88651077]
[1765151186749,0.87,131.29,131.27,11.88651077]
[1765151187147,0.87,131.29,131.27,3.54865647]
[1765151187666,0.87,131.29,131.26,8.33835069]
[1765151187667,0.87,131.29,131.26,11.88700716]
[1765151192267,0.87,131.29,131.26,73.36700716]
[1765151192475,0.2,131.29,131.27,4.26865647]
[1765151193570,0.2,131.29,131.28,3.54865647]
[1765151194374,0.2,131.29,131.28,11.88596299]
[1765151197365,0.2,131.29,131.28,19.50058392]
[1765151197673,0.2,131.29,131.28,11.88596299]
[1765151200280,0.2,131.29,131.28,19.50011928]
[1765151201786,0.87,131.35,131.29,8.80994492]
[1765151202084,0.67,131.34,131.32,3.54865647]
[1765151202380,0.87,131.35,131.33,3.54865647]
[1765151202780,0.67,131.34,131.33,3.54865647]
[1765151203164,0.67,131.34,131.32,11.16309266]
[1765151204878,0.67,131.34,131.33,3.54865647]
[1765151208281,0.2,131.35,131.33,11.16306292]
[1765151208454,0.87,131.35,131.33,11.16306292]
[1765151208885,0.67,131.34,131.33,11.16306292]
[1765151209481,0.67,131.34,131.33,7.61440645]
[1765151209987,0.67,131.34,131.33,11.16306292]
[1765151212278,0.2,131.35,131.33,11.16306292]
[1765151212478,0.2,131.35,131.33,11.84306292]
[1765151212786,0.89,131.35,131.33,11.16306292]
[1765151214489,0.2,131.35,131.33,11.16306292]
[1765151214670,0.2,131.35,131.34,3.54865647]
[1765151214874,0.2,131.35,131.34,4.22865647]
[1765151215088,0.2,131.35,131.34,66.42865647]
[1765151215467,0.2,131.35,131.34,74.04248317]
[1765151216584,0.2,131.35,131.34,73.36248317]
[1765151216785,0.2,131.35,131.34,74.03248317]
[1765151216974,0.2,131.35,131.34,73.36248317]
[1765151217575,0.2,131.35,131.34,74.03248317]
[1765151219889,0.2,131.35,131.34,69.8138267]
[1765151220078,12.06215694,131.35,131.29,3.54865647]
[1765151220412,3.54865647,131.34,131.29,3.54865647]
[1765151220589,4.24865647,131.34,131.3,7.61589806]
[1765151220775,0.7,131.33,131.3,7.61589806]
[1765151222087,0.7,131.33,131.29,7.61672633]
[1765151222289,0.7,131.33,131.29,8.28672633]
[1765151222468,0.7,131.33,131.3,0.67]
[1765151223184,0.7,131.33,131.29,30.87719862]
[1765151223695,0.7,131.33,131.29,26.65854215]
[1765151224385,0.7,131.33,131.29,30.87719862]
[1765151224584,0.7,131.33,131.29,30.20719862]
[1765151224783,0.7,131.33,131.29,26.65854215]
[1765151225289,0.7,131.33,131.29,27.32854215]
[1765151225675,0.7,131.33,131.29,26.65854215]
[1765151225876,0.7,131.33,131.29,27.32854215]
[1765151227093,0.7,131.33,131.29,30.87719862]
[1765151227299,0.7,131.33,131.3,0.67]
[1765151227501,0.7,131.33,131.29,30.20719862]
[1765151227974,0.7,131.33,131.3,0.67]
[1765151228382,0.7,131.33,131.3,4.21865647]
[1765151228577,0.7,131.33,131.31,7.61556621]
[1765151228989,0.7,131.34,131.31,11.16422268]
[1765151229195,0.7,131.34,131.31,11.83422268]
[1765151229672,0.7,131.34,131.31,30.87313822]
[1765151230681,0.7,131.34,131.31,30.20313822]
[1765151230990,0.7,131.34,131.29,8.4]
[1765151230991,8.31402862,131.34,131.3,7.61602201]
[1765151231191,7.61402862,131.34,131.3,7.61602201]
[1765151231499,0.7,131.33,131.31,7.61546698]
[1765151232602,0.9,131.35,131.31,11.83412345]
[1765151232896,0.2,131.35,131.32,3.54865647]
[1765151233198,0.7,131.34,131.31,7.61546698]
[1765151234893,8.31382891,131.34,131.3,7.61593226]
[1765151235287,0.7,131.33,131.3,7.61593226]
[1765151236690,8.31449984,131.33,131.29,7.61655267]